bitfinex/quotes_ETHUSD_20240811
["timestamp","ask_amount","ask_price","bid_price","bid_amount"]
[1723410319379,4.1967,2552.6,2552.0,0.07835384]
[1723410319581,3.91781,2552.5,2551.9,0.07835392]
[1723410319745,8.11437,2552.6,2551.9,0.07835392]
[1723410319941,12.03205,2552.6,2551.9,0.07835392]
[1723410320147,8.11437,2552.6,2551.9,0.07835392]
[1723410320742,12.03205,2552.6,2551.8,3.99715369]
[1723410321050,8.925797,2552.6,2551.8,3.99715369]
[1723410321245,8.925797,2552.6,2551.8,0.07836369]
[1723410321446,8.925797,2552.6,2551.6,3.91906]
[1723410321647,12.03203,2552.6,2551.8,3.91871]
[1723410321846,8.11436,2552.6,2551.8,3.91871]
[1723410322287,8.11436,2552.6,2551.8,7.8374]
[1723410322461,8.11436,2552.6,2551.8,3.91869]
[1723410322668,4.1967,2552.6,2551.9,0.07836372]
[1723410322988,4.1967,2552.6,2551.9,3.99687372]
[1723410323462,4.1967,2552.6,2551.9,0.07836372]
[1723410323663,4.8251,2553.0,2552.3,3.91802]
[1723410323874,4.8251,2553.0,2552.2,3.91818]
[1723410323875,8.74215,2553.0,2552.2,3.91818]
[1723410324075,4.8251,2553.0,2552.4,3.91778]
[1723410324276,4.8251,2553.0,2552.5,3.99604285]
[1723410324871,3.91643,2553.4,2552.6,3.91748]
[1723410324872,8.74153,2553.4,2552.6,3.91748]
[1723410325066,0.925657,2553.3,2552.6,0.07833672]
[1723410325268,0.051504,2553.2,2552.0,3.91846]
[1723410325455,4.8251,2552.9,2552.0,3.9184]
[1723410325650,3.968854,2552.8,2552.1,3.91831]
[1723410325928,4.8251,2552.9,2552.3,3.91802]
[1723410326071,4.8251,2552.9,2552.4,0.07834698]
[1723410326368,8.74186,2553.2,2552.4,0.07834698]
[1723410326552,8.74186,2553.2,2552.4,3.99621698]
[1723410326553,8.74184,2553.2,2552.4,3.99621698]
[1723410327191,4.8251,2553.2,2552.5,3.91761]
[1723410327487,4.8251,2553.2,2552.6,3.99579614]
[1723410327869,3.9161,2553.6,2552.6,3.94233614]
[1723410328056,3.967604,2553.6,2552.8,3.91718]
[1723410328261,0.98297809,2553.5,2552.8,3.91718]
[1723410328495,0.98297809,2553.5,2552.8,0.0783294]
[1723410328790,0.98297809,2553.5,2552.7,3.99566104]
[1723410328998,5.86217691,2553.7,2552.6,3.864]
[1723410328999,5.86217691,2553.7,2553.0,3.864]
[1723410329159,4.8251,2553.7,2553.1,3.99503896]
[1723410329358,3.91558,2553.9,2553.1,3.99503896]
[1723410329710,3.91577,2553.8,2553.1,0.07831896]
[1723410329914,0.83461,2553.9,2553.1,0.07831896]
[1723410330123,3.91587,2553.8,2553.2,0.07831906]
[1723410330897,0.783106,2553.9,2553.2,0.07831906]
[1723410331171,8.71175,2554.4,2553.4,3.864]
[1723410331378,8.71175,2554.4,2553.8,3.864]
[1723410331379,4.7969,2554.4,2553.8,3.864]
[1723410331689,3.91551,2554.0,2553.1,3.0]
[1723410331886,4.7969,2553.4,2553.0,3.864]
[1723410332092,0.08039511,2553.3,2553.0,3.864]
[1723410332823,7.83196,2553.7,2553.0,3.864]
[1723410333002,0.08078744,2553.2,2553.0,3.864]
[1723410333207,0.96822624,2553.7,2553.0,3.864]
[1723410333423,0.08072422,2553.1,2553.0,3.864]
[1723410333586,3.91486,2554.4,2553.0,3.864]
[1723410333587,8.71211,2554.2,2553.3,3.91637]
[1723410333786,4.7969,2554.2,2553.4,3.864]
[1723410334022,4.7969,2554.2,2553.5,3.91605]
[1723410334182,4.7969,2554.2,2553.5,4.694055]
[1723410334392,3.91474,2554.5,2553.5,4.694055]
[1723410334593,8.71144,2554.6,2553.7,3.91586]
[1723410335110,3.91468,2554.5,2553.6,3.91599]
[1723410335419,3.91468,2554.5,2553.7,4.85517055]
[1723410335578,3.91499,2554.3,2553.8,0.07830004]
[1723410335776,3.966184,2554.5,2553.8,0.07830004]
[1723410336223,3.91468,2554.5,2553.8,0.07830004]
[1723410336373,4.7465,2555.2,2553.8,0.47771404]
[1723410336573,3.91419,2554.9,2554.1,3.91516]
[1723410336814,7.82768,2555.1,2554.3,3.91486]
[1723410337017,3.91383,2555.1,2554.4,0.07828179]
[1723410337175,4.7465,2555.2,2554.5,3.91457]
[1723410337523,3.91321,2555.5,2554.6,0.0782773]
[1723410337524,0.08237617,2555.1,2554.6,0.0782773]
[1723410337679,0.051504,2555.4,2554.2,7.893]
[1723410337879,3.964824,2555.4,2554.2,5.0673]
[1723410338082,0.08288435,2555.3,2554.7,3.91425]
[1723410338299,3.91322,2555.5,2554.8,0.07827253]
[1723410338500,3.91347,2555.3,2554.4,3.91471]
[1723410338813,3.91347,2555.3,2554.3,3.55]
[1723410338814,0.53397711,2555.2,2554.3,3.55]
[1723410339118,0.08283384,2555.2,2554.6,3.91446]
[1723410339279,7.877994,2555.5,2554.7,0.0782713]
[1723410339480,3.91352,2555.3,2554.4,3.91467]
[1723410339711,0.08270237,2555.2,2554.5,0.07827219]
[1723410339942,0.08270237,2555.2,2554.6,3.99274538]
[1723410340113,0.08270237,2555.2,2554.6,0.86902092]
[1723410340413,4.6928,2556.0,2554.8,3.91406]
[1723410340616,4.6928,2556.0,2555.0,3.9138]
[1723410340826,0.08323641,2555.9,2555.2,3.91356]
[1723410341024,0.08323641,2555.9,2555.3,0.07825529]
[1723410341181,0.08323641,2555.9,2555.3,0.39917453]
[1723410341379,3.91197,2556.3,2555.4,4.46316]
[1723410341631,0.08325079,2555.8,2555.2,3.91349]
[1723410341781,3.91231,2556.1,2555.2,7.82697]
[1723410341983,4.6928,2556.4,2555.4,3.91319]
[1723410342230,4.6928,2556.4,2555.6,3.91288]
[1723410342378,5.72985669,2556.8,2555.8,3.91264]
[1723410342583,5.72985669,2556.8,2555.7,4.60623614]
[1723410342584,0.0809457,2556.3,2555.7,4.24554061]
[1723410342784,3.9123,2556.1,2555.3,4.4458]
[1723410343027,3.91236,2556.0,2555.4,0.55]
[1723410343182,0.08069261,2556.0,2555.4,0.55]
[1723410343384,0.08069261,2556.0,2555.4,1.44738]
[1723410343690,0.08075743,2555.9,2555.4,1.44738]
[1723410343998,3.9117,2556.5,2555.6,3.91287]
[1723410344197,0.08069435,2555.8,2555.7,0.55]
[1723410344398,3.91195,2556.3,2555.5,3.91309]
[1723410344615,3.9117,2556.5,2555.5,3.91309]
[1723410344616,0.08069435,2555.8,2555.6,3.55]
[1723410344797,0.08069435,2555.8,2555.6,7.46287]
[1723410345012,3.9113,2556.7,2555.7,0.07823788]
[1723410345213,3.90978,2557.7,2555.8,4.46255]
[1723410345214,3.91057,2557.2,2555.8,4.46255]
[1723410345522,3.962874,2556.7,2555.6,0.55]
[1723410345830,3.91245,2556.0,2555.6,0.55]
[1723410345985,0.051504,2556.1,2555.2,3.978]
[1723410346184,3.91228,2556.1,2555.2,7.89154]
[1723410346421,3.91263,2555.9,2555.2,3.978]
[1723410346590,3.91236,2556.0,2555.2,3.978]
[1723410346927,0.051504,2555.9,2554.9,4.4458]
[1723410347105,3.91303,2555.6,2554.5,4.4458]
[1723410347405,4.6928,2555.8,2554.5,4.4458]
[1723410347406,3.91379,2555.1,2554.6,0.44458]
[1723410347706,3.9131,2555.6,2554.5,7.48]
[1723410347911,3.9131,2555.6,2554.8,3.91407]
[1723410348107,3.9131,2555.6,2554.5,7.48]
[1723410348108,0.051504,2555.7,2554.9,0.391407]
[1723410348305,3.91297,2555.6,2554.9,0.391407]
[1723410348712,4.6928,2555.8,2555.0,7.82767]
[1723410348894,4.6928,2555.8,2555.0,3.91378]
[1723410349095,8.60555,2555.8,2554.9,4.305427]
[1723410349314,8.60555,2555.8,2555.0,5.1804217]
[1723410349522,8.60555,2555.8,2555.0,1.2665317]
[1723410350027,12.51831,2555.8,2555.0,1.2665317]
[1723410350400,8.60555,2555.8,2555.0,5.1803117]
[1723410350619,8.60555,2555.8,2555.1,0.55717187]
[1723410351728,3.91149,2556.6,2555.5,3.91307]
[1723410351949,3.962984,2556.6,2555.4,4.7443]
[1723410352095,3.91252,2555.9,2555.5,3.0]
[1723410352296,3.91245,2556.0,2555.4,1.263573]
[1723410352630,0.08124957,2555.9,2555.3,6.91342]
[1723410353022,3.91226,2556.1,2555.3,6.91342]
[1723410353540,0.0812282,2556.0,2555.3,6.91342]
[1723410353833,3.963634,2556.2,2555.3,6.91342]
[1723410354041,0.08116513,2555.9,2555.4,5.002412]
[1723410354250,3.91181,2556.4,2555.5,6.91302]
[1723410354531,3.91181,2556.4,2555.4,1.089142]
[1723410354532,0.051504,2556.5,2555.6,8.85313]
[1723410354742,7.8231,2556.6,2555.7,4.798023]
[1723410354743,0.08141741,2556.3,2555.7,4.798023]
[1723410354897,3.963034,2556.6,2555.7,4.798023]
[1723410355098,0.08158573,2556.5,2556.1,3.91212]
[1723410355436,0.08158573,2556.5,2555.8,4.74335424]
[1723410355437,3.91115,2556.8,2556.0,3.91221]
[1723410355595,3.99377618,2556.4,2555.6,11.8531]
[1723410355795,3.91184,2556.4,2555.6,11.8531]
[1723410356003,0.08172729,2556.3,2555.7,3.91272]
[1723410356338,0.08161123,2556.2,2555.8,3.0]
[1723410356631,4.5895,2556.9,2555.9,4.4624]
[1723410356632,3.91116,2556.8,2555.9,4.4624]
[1723410356833,0.08162608,2556.1,2555.9,4.4624]
[1723410357043,0.051504,2556.7,2556.0,0.74624]
[1723410357195,3.962664,2556.8,2556.1,0.07823218]
[1723410357395,0.051504,2556.8,2556.1,3.99040218]
[1723410357633,0.0820208,2556.7,2556.1,4.9103064]
[1723410357832,0.0820208,2556.7,2556.1,4.9102764]
[1723410358034,3.91115,2556.8,2556.1,0.9981364]
[1723410358237,0.08145987,2556.6,2555.9,4.46241]
[1723410358450,0.08152292,2556.7,2555.9,8.37481]
[1723410358615,0.08139683,2556.5,2556.0,4.73676949]
[1723410358822,3.91115,2556.8,2556.1,0.55]
[1723410359139,3.962654,2556.8,2556.0,0.746241]
[1723410359347,3.91145,2556.6,2556.0,0.746241]
[1723410359549,3.91145,2556.6,2555.8,3.0]
[1723410359550,0.051504,2556.5,2555.8,3.0]
[1723410359763,4.5895,2556.4,2555.0,19.84]
[1723410359935,4.5895,2556.4,2554.7,8.3682]
[1723410359936,4.5895,2555.6,2554.9,3.91402]
[1723410360261,0.0808681,2555.5,2554.9,3.91395]
[1723410360462,0.0808681,2555.5,2555.0,4.305235]
[1723410360683,3.91185,2556.4,2555.0,4.305235]
[1723410360684,3.90962,2557.8,2556.7,3.91114]
[1723410360985,4.31821271,2558.2,2556.8,0.391114]
[1723410360986,3.91046,2557.3,2556.8,0.391114]
[1723410361162,3.91024,2557.4,2556.6,0.39583835]
[1723410361365,0.60456048,2558.0,2556.5,1.65613088]
[1723410361575,3.90986,2557.7,2556.6,4.62989705]
[1723410361866,3.91001,2557.6,2556.8,3.91111]
[1723410362069,3.9093,2558.0,2556.5,1.65613088]
[1723410362284,3.91068,2557.1,2556.5,1.65613088]
[1723410362574,3.91047,2557.3,2556.4,6.91162]
[1723410362725,7.82096,2557.3,2556.4,6.91162]
[1723410362932,3.90956,2557.9,2556.5,5.000492]
[1723410363189,3.91029,2557.4,2556.6,3.91144]
[1723410363508,1.02885883,2559.1,2556.8,3.978]
[1723410363679,1.02885883,2559.1,2558.4,3.90867]
[1723410363888,4.5895,2559.4,2558.8,3.90806]
[1723410364049,4.5895,2559.4,2558.6,3.90836]
[1723410364050,3.90603,2560.2,2558.5,0.07815811]
[1723410364051,3.90615,2560.1,2559.0,3.90774]
[1723410364374,5.66287361,2560.9,2559.3,3.90721]
[1723410364580,3.90549,2560.5,2559.4,0.940721]
[1723410364729,3.90581,2560.3,2559.4,0.75959244]
[1723410364930,3.90595,2560.2,2559.3,3.90718]
[1723410365136,4.5895,2560.3,2559.5,3.90688]
[1723410365335,8.49475,2560.7,2559.5,0.31518067]
[1723410365563,8.49475,2560.7,2559.6,0.94330541]
[1723410365765,8.49475,2560.7,2559.7,3.98479194]
[1723410365926,4.5895,2560.7,2559.8,4.43815081]
[1723410366128,3.90454,2561.2,2559.9,14.7908]
[1723410366345,4.5895,2561.3,2559.9,6.978]
[1723410366574,1.53125,2560.0,2559.9,6.978]
[1723410366875,1.53125,2560.0,2559.9,19.731]
[1723410367044,1.53125,2560.0,2559.9,21.74944792]
[1723410367790,1.53125,2560.0,2559.9,9.54644792]
[1723410368103,1.53125,2560.0,2559.9,6.9064]
[1723410368405,1.53125,2560.0,2559.9,15.3408]
[1723410368609,1.53125,2560.0,2559.9,11.4344]
[1723410368763,1.53125,2560.0,2559.9,15.3408]
[1723410369364,1.53125,2560.0,2559.9,19.731]
[1723410369697,1.53125,2560.0,2559.9,24.001145]
[1723410370068,1.53125,2560.0,2559.9,20.094745]
[1723410370263,1.53125,2560.0,2559.9,6.341745]
[1723410370484,1.53125,2560.0,2559.4,3.978]
[1723410370684,1.53125,2560.0,2558.9,3.978]
[1723410370898,3.90704,2559.5,2558.4,3.978]
[1723410371071,8.74915632,2559.9,2558.4,3.978]
[1723410371072,3.90748,2559.2,2558.5,0.3978]
[1723410371260,3.9084,2558.6,2557.9,3.978]
[1723410371466,4.7741,2559.0,2557.2,4.8265]
[1723410371467,4.7741,2559.0,2557.4,3.978]
[1723410371687,0.06735203,2558.5,2558.3,3.90878]
[1723410371903,0.55,2559.9,2557.9,3.978]
[1723410371904,3.90714,2559.5,2558.6,3.90837]
[1723410372410,4.7741,2559.7,2557.9,3.978]
[1723410372411,3.9081,2558.8,2557.9,3.978]
[1723410372615,3.9085,2558.6,2557.4,0.873674]
[1723410372782,4.7741,2559.0,2556.9,3.978]
[1723410372783,0.06688646,2558.7,2556.9,3.978]
[1723410373098,3.909,2558.2,2556.9,3.978]
[1723410373286,3.90864,2558.5,2556.9,3.978]
[1723410373503,0.06694559,2558.6,2556.9,3.978]
[1723410373504,0.06654832,2558.1,2557.5,3.91005]
[1723410373678,3.90869,2558.4,2557.5,3.9882383]
[1723410373880,0.06665179,2558.0,2557.6,3.9099]
[1723410374085,3.0,2558.9,2557.4,3.91015]
[1723410374086,3.90881,2558.4,2557.4,3.91015]
[1723410374303,0.06658883,2557.9,2557.6,3.90983]
[1723410374504,3.90875,2558.4,2557.6,0.78981892]
[1723410374804,3.90823,2558.7,2557.6,0.07818985]
[1723410375002,0.06673073,2558.3,2557.8,3.9096]
[1723410375299,3.90866,2558.5,2557.5,3.91]
[1723410375507,0.06648898,2558.2,2557.6,3.98806859]
[1723410375714,0.0666149,2558.4,2557.5,0.782009]
[1723410376017,3.90824,2558.7,2557.7,3.90975]
[1723410376223,0.06658489,2558.3,2557.8,0.07818201]
[1723410376367,4.7741,2559.0,2558.1,3.90913]
[1723410376566,4.7741,2559.0,2558.1,3.98729874]
[1723410376805,4.7741,2559.0,2558.2,0.39872987]
[1723410376806,3.90826,2558.7,2558.2,0.39872987]
[1723410377105,3.90826,2558.7,2557.7,3.0]
[1723410377265,3.90868,2558.5,2557.7,3.0]
[1723410377465,4.7741,2560.7,2558.6,3.90823]
[1723410377704,4.7741,2560.7,2559.0,3.978]
[1723410377910,4.7741,2560.7,2559.9,3.9064]
[1723410378077,4.7741,2560.7,2559.9,8.3628]
[1723410378278,4.7741,2561.2,2559.9,13.10548]
[1723410378483,8.80286,2561.7,2559.9,16.10548]
[1723410378679,3.90397,2561.5,2559.9,16.10548]
[1723410379406,3.90416,2561.4,2559.9,12.19908]
[1723410379614,4.7741,2560.8,2559.9,3.83628]
[1723410379824,4.7741,2560.8,2559.8,6.90655]
[1723410379825,3.90532,2560.7,2559.8,6.90655]
[1723410380016,3.90532,2560.7,2559.8,3.0]
[1723410380180,3.90552,2560.5,2559.5,3.978]
[1723410380382,4.7741,2560.8,2559.5,3.978]
[1723410380689,4.7741,2560.8,2559.3,3.0]
[1723410380879,3.90653,2559.9,2559.1,3.0]
[1723410381077,3.90653,2559.9,2559.2,0.6978]
[1723410381319,3.0,2560.7,2559.0,3.978]
[1723410381487,3.0,2560.7,2559.1,0.07812863]
[1723410381686,3.90555,2560.5,2559.5,3.9069]
[1723410382021,4.7741,2560.8,2559.9,3.9064]
[1723410382537,4.7741,2560.8,2559.9,4.4564]
[1723410382703,4.7741,2560.8,2559.9,8.292699]
[1723410382905,4.7741,2560.8,2559.9,11.3628]
[1723410383322,0.12503,2561.7,2559.9,15.6618]
[1723410383323,8.51686,2561.5,2559.9,15.6618]
[1723410383494,4.6128,2561.5,2559.9,15.6618]
[1723410383835,4.6128,2561.5,2560.8,3.90488]
[1723410383987,4.6128,2561.5,2560.9,0.46857839]
[1723410384191,4.6128,2561.5,2560.9,0.07809039]
[1723410384390,4.6128,2561.5,2560.8,3.90498]
[1723410384644,0.12503,2561.7,2560.9,0.07808956]
[1723410384796,0.12503,2561.7,2561.2,3.90431]
[1723410384990,4.6128,2563.8,2561.6,4.7373]
[1723410385287,4.6128,2563.8,2562.9,3.90177]
[1723410385492,3.90077,2563.6,2562.7,3.0]
[1723410385724,3.90118,2563.4,2562.5,0.38951681]
[1723410385934,3.90118,2563.4,2562.2,3.90277]
[1723410386151,3.90063,2563.7,2562.3,3.0]
[1723410386308,3.90122,2563.3,2562.3,3.0]
[1723410386513,3.90063,2563.7,2562.3,3.0]
[1723410386514,0.390122,2563.2,2562.3,3.0]
[1723410386754,3.90198,2562.8,2562.1,3.0]
[1723410386910,3.90063,2563.7,2562.1,6.98107202]
[1723410387103,3.90072,2563.7,2562.6,3.90213]
[1723410387443,4.6128,2563.8,2563.1,3.90151]
[1723410387594,4.6128,2563.8,2563.2,3.97936205]
[1723410387798,0.12503,2564.3,2563.3,0.07801389]
[1723410387994,0.12503,2564.3,2562.8,3.0]
[1723410387995,4.6128,2563.9,2562.8,3.0]
[1723410388194,4.6128,2563.9,2562.6,0.390213]
[1723410388195,0.46128,2563.8,2562.6,3.0]
[1723410388500,0.46128,2563.8,2562.6,0.07803947]
[1723410388697,3.90107,2563.4,2562.6,0.07803947]
[1723410388898,3.90107,2563.4,2562.6,3.07803947]
[1723410389098,0.46128,2563.8,2562.7,3.90198]
[1723410389099,4.3618,2563.8,2562.7,3.90198]
[1723410389318,4.6128,2564.5,2563.2,3.90127]
[1723410389523,4.6128,2564.5,2563.4,3.90105]
[1723410389722,4.02474,2564.3,2563.5,0.07800102]
[1723410390240,0.12503,2564.3,2563.5,3.97891102]
[1723410390539,3.89998,2564.2,2563.4,3.0]
[1723410390850,3.9001,2564.1,2563.3,3.0]
[1723410391136,0.12503,2564.3,2563.5,3.90089]
[1723410391434,0.12503,2564.3,2563.6,0.0780008]
[1723410391936,0.12503,2564.3,2564.1,3.89989]
[1723410392147,0.12503,2564.3,2564.0,7.87814]
[1723410392148,0.12503,2564.3,2564.2,3.97783587]
[1723410392302,0.12503,2564.3,2564.1,0.33939936]
[1723410392648,0.12503,2564.3,2563.6,3.0]
[1723410392849,0.0462887,2564.2,2563.6,3.0]
[1723410393295,0.0462887,2564.2,2563.5,3.978]
[1723410393500,4.02476,2564.3,2564.2,3.89985]
[1723410393501,0.12503,2564.3,2564.2,3.89985]
[1723410393728,0.12503,2564.3,2564.2,3.31752852]
[1723410393931,0.12503,2564.3,2564.2,8.40941585]
[1723410394347,0.12503,2564.3,2564.2,12.30926585]
[1723410394501,3.89711,2566.0,2565.1,3.89835]
[1723410394701,4.6593,2566.2,2564.8,3.89893]
[1723410394702,4.6593,2566.2,2564.9,3.0]
[1723410394925,4.6593,2566.2,2564.8,3.978]
[1723410394926,3.89745,2565.8,2564.8,3.978]
[1723410395143,3.89777,2565.6,2564.8,3.978]
[1723410395354,3.89723,2566.0,2564.9,0.62797049]
[1723410395650,3.89721,2566.0,2565.1,3.89845]
[1723410395853,8.55614,2566.2,2565.2,3.0]
[1723410396001,9.411754,2566.2,2565.3,0.07795184]
[1723410396199,3.99564,2567.0,2565.6,3.89769]
[1723410396200,4.6593,2566.9,2565.6,3.89769]
[1723410396403,4.6593,2566.9,2565.8,3.978]
[1723410396640,4.02103,2566.8,2565.9,3.62792721]
[1723410396840,4.02103,2566.8,2566.0,4.65769272]
[1723410397049,4.02103,2566.8,2566.1,0.07792723]
[1723410397050,0.12503,2566.8,2566.1,0.07792723]
[1723410397198,0.12503,2566.8,2566.4,3.89637]
[1723410397411,0.04195452,2566.7,2566.3,3.978]
[1723410397638,0.04195452,2566.7,2566.2,3.89676]
[1723410397639,3.89631,2566.6,2566.1,3.0]
[1723410397838,3.938793,2566.6,2565.9,3.55]
[1723410398226,0.042583,2566.6,2565.9,3.55]
[1723410398431,3.89616,2566.7,2565.9,3.55]
[1723410398651,0.04285539,2566.5,2565.9,3.55]
[1723410398811,3.89636,2566.5,2565.9,3.0]
[1723410399010,0.04284758,2566.4,2565.9,3.0]
[1723410399213,0.12503,2566.8,2566.3,3.89653]
[1723410399553,0.12503,2566.8,2566.6,3.89608]
[1723410399714,0.12503,2566.8,2566.4,3.0]
[1723410399911,0.12503,2566.8,2566.6,3.89608]
[1723410400115,0.12503,2566.8,2566.7,7.87000479]
[1723410400310,0.12503,2566.8,2566.7,3.0]
[1723410400535,0.12503,2566.8,2566.7,3.55]
[1723410400742,0.12503,2566.8,2566.7,4.52395519]
[1723410400925,0.12503,2566.8,2566.7,8.27513868]
[1723410401124,0.12503,2566.8,2566.7,12.17118868]
[1723410401338,0.12503,2566.8,2566.7,16.06723868]
[1723410402425,0.12503,2566.8,2566.7,3.0]
[1723410402626,0.12503,2566.8,2566.4,0.6978]
[1723410402627,0.12503,2566.8,2566.6,3.0]
[1723410402825,0.12503,2566.8,2566.4,3.0]
[1723410403133,0.12503,2566.8,2566.7,3.89605]
[1723410403359,0.12503,2566.8,2566.7,3.0]
[1723410403564,0.12503,2566.8,2566.0,3.89699]
[1723410403731,3.89606,2566.7,2565.8,7.87539]
[1723410404050,0.12503,2566.8,2566.0,4.47744885]
[1723410404552,0.12503,2566.8,2566.3,3.89655]
[1723410404880,0.12503,2566.8,2566.4,0.07791412]
[1723410405217,0.12503,2566.8,2566.0,0.58043885]
[1723410405218,3.89615,2566.7,2566.0,0.58043885]
[1723410405463,0.12503,2566.8,2565.9,0.6978]
[1723410405642,3.89629,2566.6,2564.8,5.538857]
[1723410405845,7.79413,2566.1,2565.1,3.89846]
[1723410406061,3.89708,2566.1,2564.9,3.89868]
[1723410406232,3.8974,2565.9,2565.0,0.9437537]
[1723410406435,3.89817,2565.4,2564.4,8.49801]
[1723410406656,0.0395377,2565.8,2564.6,3.89921]
[1723410406866,0.03936173,2565.3,2564.6,3.89921]
[1723410407020,3.89807,2565.4,2564.4,3.89944]
[1723410407220,0.03924404,2565.2,2564.5,0.787744]
[1723410407458,3.89778,2565.6,2564.5,0.787744]
[1723410407459,3.89866,2565.0,2564.5,0.787744]
[1723410407664,3.93747498,2565.1,2564.1,3.89987]
[1723410407819,0.03884192,2564.9,2564.1,4.29247]
[1723410408159,8.55789,2565.1,2564.1,4.29247]
[1723410408360,3.89921,2564.7,2563.8,3.978]
[1723410408783,0.03809661,2564.6,2563.8,7.87833]
[1723410408987,0.03809661,2564.6,2563.8,3.978]
[1723410408988,3.89941,2564.5,2563.8,3.978]
[1723410409154,0.03809661,2564.6,2563.9,0.3978]
[1723410409356,3.8991,2564.7,2563.9,0.3978]
[1723410409357,3.9377867,2564.5,2563.9,0.3978]
[1723410409560,3.9377867,2564.5,2563.6,3.90063]
[1723410409884,3.90011,2564.1,2563.2,3.90135]
[1723410410281,0.03796394,2564.0,2563.5,3.9008]
[1723410410582,3.89997,2564.2,2563.6,0.39008]
[1723410410887,3.89997,2564.2,2563.1,3.90146]
[1723410410888,4.6593,2564.3,2563.1,3.90141]
[1723410411208,0.03796446,2564.2,2563.1,3.90141]
[1723410411409,3.90032,2563.9,2563.2,0.390141]
[1723410411578,3.90032,2563.9,2562.9,4.29437]
[1723410411579,3.90047,2563.8,2562.9,3.90177]
[1723410411785,0.03750422,2563.7,2563.0,0.787977]
[1723410412197,0.03750422,2563.7,2563.5,3.90091]
[1723410412427,4.6593,2564.3,2563.5,3.90091]
[1723410412717,4.6593,2564.3,2563.6,3.90064]
[1723410412906,3.89915,2564.7,2563.8,3.90034]
[1723410413071,4.8242,2564.8,2563.9,4.29812407]
[1723410413466,8.72314,2564.8,2563.9,4.29812407]
[1723410413903,4.8242,2564.8,2564.1,3.89989]
[1723410414112,4.8242,2564.8,2564.3,3.89969]
[1723410414310,4.8242,2564.8,2564.2,0.07798879]
[1723410414480,4.8242,2564.8,2564.1,4.80548025]
[1723410414683,4.8242,2564.8,2564.1,3.89989]
[1723410414865,4.8242,2564.8,2564.3,3.89958]
[1723410415067,4.6926,2565.3,2564.6,3.89919]
[1723410415405,4.6926,2565.3,2564.1,0.07797986]
[1723410415610,4.6926,2565.3,2564.1,0.34705799]
[1723410415767,4.6926,2565.3,2564.1,3.89986]
[1723410415768,3.89865,2565.0,2564.1,3.89986]
[1723410416107,3.89865,2565.0,2563.9,3.0]
[1723410416108,4.6926,2565.3,2564.7,3.89894]
[1723410416346,4.6926,2565.3,2564.6,3.89923]
[1723410416552,4.6926,2565.3,2564.7,0.389923]
[1723410417259,4.6926,2565.3,2564.8,3.89891]
[1723410418338,4.6926,2565.3,2564.7,0.389923]
[1723410418728,4.6926,2565.3,2564.4,3.89944]
[1723410418928,3.89865,2565.0,2564.1,3.89988]
[1723410419574,3.89854,2565.1,2564.3,3.89968]
[1723410419732,3.8987,2565.0,2563.9,3.90026]
[1723410419939,3.89904,2564.8,2564.0,3.90015]
[1723410420140,3.89841,2565.2,2564.3,3.89969]
[1723410420483,3.89841,2565.2,2564.1,3.89989]
[1723410420651,0.859101,2565.1,2563.9,3.90024]
[1723410420835,3.89925,2564.6,2564.0,3.0]
[1723410421040,4.5096,2564.5,2563.7,3.90059]
[1723410421266,3.89795,2565.5,2563.8,3.97845821]
[1723410421267,4.9484,2565.0,2563.8,3.97845821]
[1723410421574,8.8471,2565.0,2564.1,3.89991]
[1723410421772,8.8471,2565.0,2564.2,0.389991]
[1723410421935,8.8471,2565.0,2563.3,9.2822]
[1723410421936,3.8994,2564.5,2563.4,4.29359]
[1723410422135,3.8994,2564.5,2563.6,7.8013]
[1723410422375,3.8994,2564.5,2563.7,3.90059]
[1723410422682,3.89854,2565.1,2563.4,4.29359]
[1723410422981,4.9484,2563.8,2562.8,3.90188]
[1723410423189,4.9484,2563.8,2562.9,0.07802522]
[1723410423474,8.84836,2564.2,2563.2,3.90123]
[1723410423646,3.9003,2564.0,2563.0,7.80317]
[1723410423849,3.90033,2563.9,2563.1,3.90151]
[1723410424470,3.9001,2564.1,2563.2,3.90134]
[1723410424655,3.90021,2564.0,2563.2,3.90134]
[1723410424854,8.84832,2564.2,2563.2,3.90126]
[1723410425058,3.90002,2564.1,2563.2,4.291386]
[1723410425239,3.90016,2564.0,2563.2,4.291386]
[1723410425434,3.90031,2563.9,2563.2,0.390126]
[1723410425679,3.90031,2563.9,2563.1,3.0]
[1723410425852,4.7132,2563.8,2562.2,3.90281]
[1723410426062,4.7132,2563.0,2562.2,7.8056]
[1723410426361,4.7132,2563.0,2561.8,8.5795]
[1723410426362,3.90223,2562.7,2561.8,0.3926]
[1723410426580,3.90223,2562.7,2561.3,8.5795]
[1723410426581,4.7132,2563.0,2562.1,3.90292]
[1723410426739,4.7132,2563.4,2562.8,3.90198]
[1723410426944,3.90123,2563.3,2562.4,3.98057096]
[1723410427156,4.7132,2563.4,2562.9,3.90182]
[1723410427354,0.03522621,2563.2,2563.1,7.80304]
[1723410427554,0.03527521,2563.3,2562.5,0.3980571]
[1723410427886,4.7132,2563.8,2563.3,3.9012]
[1723410428397,3.90102,2563.5,2562.7,3.0]
[1723410428558,3.901,2563.5,2562.6,3.0]
[1723410428742,3.90103,2563.5,2562.6,3.90221]
[1723410429088,4.7132,2564.2,2563.4,3.90096]
[1723410429253,3.90043,2563.9,2563.0,3.90157]
[1723410429441,0.1,2564.8,2563.0,3.90157]
[1723410429442,4.7132,2565.2,2563.9,3.90023]
[1723410429645,3.89854,2565.1,2564.1,3.89989]